bitfinex-derivatives/quotes_BTCF0:USTF0_20251216
["timestamp","ask_amount","ask_price","bid_price","bid_amount"]
[1765875738345,0.0669021,86284.0,86283.0,0.06766614]
[1765875738633,0.0669021,86284.0,86283.0,0.47846614]
[1765875739437,0.0669021,86284.0,86283.0,0.42846614]
[1765875739736,0.0669021,86284.0,86283.0,0.46846614]
[1765875741431,0.0669021,86284.0,86283.0,0.47046614]
[1765875741732,0.0669021,86284.0,86283.0,0.43046614]
[1765875742142,0.0669021,86284.0,86283.0,0.48046614]
[1765875742642,0.0669021,86284.0,86283.0,0.43046614]
[1765875742842,0.0669021,86284.0,86283.0,0.48046614]
[1765875743644,0.0669021,86284.0,86283.0,0.43046614]
[1765875745540,0.0669021,86284.0,86283.0,0.47046614]
[1765875745743,0.0669021,86284.0,86283.0,0.43046614]
[1765875747328,0.0669021,86284.0,86283.0,0.41887384]
[1765875748242,0.05531,86284.0,86283.0,0.46887384]
[1765875748540,0.05531,86284.0,86283.0,0.41887384]
[1765875748943,0.05531,86284.0,86283.0,0.46687384]
[1765875749141,0.05531,86284.0,86283.0,0.41787384]
[1765875749342,0.05531,86284.0,86283.0,0.46787384]
[1765875749640,0.05531,86284.0,86283.0,0.41787384]
[1765875749843,0.05531,86284.0,86283.0,0.46787384]
[1765875751240,0.05531,86284.0,86283.0,0.70787384]
[1765875751441,0.05531,86284.0,86283.0,0.75787384]
[1765875751745,0.05531,86284.0,86283.0,0.45787384]
[1765875752043,0.05531,86284.0,86283.0,0.41787384]
[1765875752343,0.05531,86284.0,86283.0,0.46787384]
[1765875752745,0.05531,86284.0,86283.0,0.45787384]
[1765875752940,0.05531,86284.0,86283.0,0.41787384]
[1765875753246,0.05531,86284.0,86283.0,0.46787384]
[1765875753643,0.41966,86298.0,86297.0,0.05835]
[1765875753842,0.4624038,86298.0,86297.0,0.05835]
[1765875754838,0.4634038,86298.0,86297.0,0.05835]
[1765875755044,0.4644038,86298.0,86297.0,0.05835]
[1765875756447,0.1036038,86298.0,86297.0,0.05835]
[1765875757143,0.10259967,86298.0,86297.0,0.05835]
[1765875757344,0.10359967,86298.0,86297.0,0.05835]
[1765875758441,0.05886,86286.0,86285.0,0.39013]
[1765875758646,0.0704519,86286.0,86285.0,0.3608]
[1765875758945,0.0704519,86286.0,86285.0,0.02933]
[1765875759141,0.0704519,86286.0,86285.0,0.05835]
[1765875759349,0.0704519,86286.0,86285.0,0.02933]
[1765875759543,0.10160326,86286.0,86285.0,0.02933]
[1765875759745,0.10160326,86286.0,86285.0,0.05835]
[1765875760147,0.10160326,86286.0,86285.0,0.05935]
[1765875760347,0.10160326,86286.0,86285.0,0.06035]
[1765875761151,0.10160326,86286.0,86285.0,0.05935]
[1765875761449,0.10160326,86286.0,86285.0,0.05835]
[1765875762551,0.10160326,86286.0,86285.0,0.10835]
[1765875762751,0.0704519,86286.0,86285.0,0.05835]
[1765875763150,0.0704519,86286.0,86285.0,0.10835]
[1765875763850,0.0115919,86286.0,86285.0,0.05835]
[1765875764043,0.01748384,86300.0,86288.0,0.0868215]
[1765875764044,0.0115916,86289.0,86288.0,0.0868215]
[1765875764243,0.0414516,86289.0,86288.0,0.1368215]
[1765875764645,0.0704516,86289.0,86288.0,0.1368215]
[1765875765254,0.0704516,86289.0,86288.0,0.11523]
[1765875765650,0.0704516,86289.0,86288.0,0.12523]
[1765875766354,0.0704516,86289.0,86288.0,0.07523]
[1765875766552,0.0704516,86289.0,86288.0,0.12523]
[1765875767850,0.0704516,86289.0,86288.0,0.07523]
[1765875768253,0.0704516,86289.0,86288.0,0.11523]
[1765875768756,0.0704516,86289.0,86288.0,0.12523]
[1765875768945,0.0704516,86289.0,86288.0,0.07523]
[1765875769546,0.0704516,86289.0,86288.0,0.05835]
[1765875776860,0.0115916,86289.0,86288.0,0.12523]
[1765875777061,0.0115916,86289.0,86288.0,0.11523]
[1765875777863,0.0414516,86289.0,86288.0,0.11523]
[1765875778564,0.0414509,86295.0,86294.0,0.0115908]
[1765875778864,0.0704509,86295.0,86294.0,0.05835]
[1765875781559,0.0414509,86295.0,86294.0,0.1199408]
[1765875781960,0.02986,86295.0,86294.0,0.1199408]
[1765875782466,0.0115906,86296.0,86295.0,0.05912]
[1765875782665,0.0392906,86296.0,86295.0,0.05912]
[1765875783067,0.05581,86296.0,86295.0,0.10912]
[1765875783358,0.0674002,86299.0,86298.0,0.0708003]
[1765875784063,0.0674002,86299.0,86298.0,0.1208003]
[1765875785174,0.0684002,86299.0,86298.0,0.1208003]
[1765875785368,0.0694002,86299.0,86298.0,0.1208003]
[1765875785969,0.0694002,86299.0,86298.0,0.0708003]
[1765875786270,0.0694002,86299.0,86298.0,0.1208003]
[1765875786471,0.0694002,86299.0,86298.0,0.0708003]
[1765875789578,0.0694002,86299.0,86298.0,0.05921]
[1765875796583,0.0694002,86299.0,86298.0,0.0708003]
[1765875797680,0.0694002,86299.0,86298.0,0.05921]
[1765875798382,0.0694002,86299.0,86298.0,0.0708003]
[1765875799370,0.002,86299.0,86298.0,0.5138503]
[1765875801381,0.002,86299.0,86298.0,0.0838503]
[1765875801683,0.05781,86299.0,86298.0,0.1338503]
[1765875802073,0.05781,86299.0,86298.0,0.05921]
[1765875806484,0.05781,86299.0,86298.0,0.10921]
[1765875807284,0.05781,86299.0,86298.0,0.05921]
[1765875807475,0.05781,86299.0,86298.0,0.10921]
[1765875807779,0.002,86299.0,86298.0,0.47921]
[1765875809183,0.002,86299.0,86298.0,0.05921]
[1765875809382,0.002,86299.0,86298.0,0.10921]
[1765875811088,0.002,86299.0,86298.0,0.47001]
[1765875811383,0.002,86299.0,86298.0,0.42001]
[1765875811594,0.002,86299.0,86298.0,0.4816003]
[1765875814487,0.001,86299.0,86298.0,0.4816003]
[1765875814682,0.00017384,86300.0,86299.0,0.05692]
[1765875814882,0.00017384,86300.0,86299.0,0.10692]
[1765875815884,0.00017384,86300.0,86299.0,0.10792]
[1765875816183,0.00017384,86300.0,86299.0,0.05792]
[1765875816590,0.00017384,86300.0,86299.0,0.10792]
[1765875816793,0.00017384,86300.0,86299.0,0.46872]
[1765875817478,0.00017384,86300.0,86299.0,0.47072]
[1765875817884,0.00017384,86300.0,86299.0,0.46072]
[1765875818084,0.00017384,86300.0,86299.0,0.45872]
[1765875818295,0.00017384,86300.0,86299.0,0.46072]
[1765875818591,0.00017384,86300.0,86299.0,0.41972]
[1765875818895,0.00017384,86300.0,86299.0,0.46872]
[1765875819095,0.00017384,86300.0,86299.0,0.47072]
[1765875819394,0.00017384,86300.0,86299.0,0.42072]
[1765875819695,0.00017384,86300.0,86299.0,0.47072]
[1765875820397,0.02989384,86300.0,86299.0,0.46072]
[1765875820594,0.00017384,86300.0,86299.0,0.46072]
[1765875820992,0.00017384,86300.0,86299.0,0.47072]
[1765875821495,0.00017384,86300.0,86299.0,0.46872]
[1765875821794,0.00017384,86300.0,86299.0,0.47072]
[1765875821998,0.00017384,86300.0,86299.0,0.46972]
[1765875822181,0.00017384,86300.0,86299.0,0.47072]
[1765875822593,0.00017384,86300.0,86299.0,0.46972]
[1765875822794,0.00017384,86300.0,86299.0,0.47072]
[1765875823099,0.00017384,86300.0,86299.0,0.42072]
[1765875823598,0.00017384,86300.0,86299.0,0.46072]
[1765875824196,0.04148384,86300.0,86299.0,0.42072]
[1765875824400,0.06979384,86300.0,86299.0,0.47072]
[1765875824699,0.04148384,86300.0,86299.0,0.47072]
[1765875824888,0.02989384,86300.0,86299.0,0.47072]
[1765875825090,0.00017384,86300.0,86299.0,0.73072]
[1765875825290,0.00017384,86300.0,86299.0,0.47072]
[1765875825485,0.00017384,86300.0,86299.0,0.46872]
[1765875825689,0.00017384,86300.0,86299.0,0.46972]
[1765875825890,0.00017384,86300.0,86299.0,0.47072]
[1765875826602,0.00017384,86300.0,86299.0,0.46072]
[1765875827186,0.00017384,86300.0,86299.0,0.41972]
[1765875827495,0.00017384,86300.0,86299.0,0.46972]
[1765875827697,0.00017384,86300.0,86299.0,0.41972]
[1765875827893,0.00017384,86300.0,86299.0,0.46972]
[1765875828095,0.00017384,86300.0,86299.0,0.41972]
[1765875828486,0.01176384,86300.0,86299.0,0.41972]
[1765875828690,0.02989384,86300.0,86299.0,0.45972]
[1765875829002,0.00017384,86300.0,86299.0,0.46972]
[1765875830700,0.00017384,86300.0,86299.0,0.88972]
[1765875830895,0.00017384,86300.0,86299.0,0.88872]
[1765875831196,0.00017384,86300.0,86299.0,0.88972]
[1765875831404,0.00017384,86300.0,86299.0,0.88872]
[1765875831596,0.00017384,86300.0,86299.0,0.60972]
[1765875834307,0.00017384,86300.0,86299.0,0.81972]
[1765875834505,0.00017384,86300.0,86299.0,0.64972]
[1765875834706,0.00017384,86300.0,86299.0,0.46972]
[1765875835806,0.00017384,86300.0,86299.0,0.10892]
[1765875836203,0.00017384,86300.0,86299.0,0.45972]
[1765875836704,0.00017384,86300.0,86299.0,0.81972]
[1765875837310,0.0696189,86308.0,86307.0,0.081719]
[1765875837610,0.0696189,86308.0,86307.0,0.131719]
[1765875838501,0.0696189,86308.0,86307.0,0.081719]
[1765875838701,0.0696189,86308.0,86307.0,0.131719]
[1765875838908,0.0696189,86308.0,86307.0,0.121719]
[1765875839707,0.0696189,86308.0,86307.0,0.07013]
[1765875840011,0.0696189,86308.0,86307.0,0.12013]
[1765875840211,0.0696189,86308.0,86307.0,0.07013]
[1765875840511,0.0696189,86308.0,86307.0,0.12013]
[1765875841004,0.0115889,86308.0,86307.0,0.12013]
[1765875841207,0.06979164,86316.0,86315.0,0.05542]
[1765875841411,0.10053179,86316.0,86315.0,0.05542]
[1765875841607,0.07222179,86316.0,86315.0,0.05542]
[1765875841807,0.00017384,86316.0,86315.0,0.41622]
[1765875842107,0.05820384,86316.0,86315.0,0.41622]
[1765875842404,0.07497384,86316.0,86315.0,0.38872]
[1765875842605,0.05698,86308.0,86307.0,0.05609384]
[1765875842807,0.0685689,86308.0,86307.0,0.05609384]
[1765875843002,0.0685689,86308.0,86307.0,0.10609384]
[1765875843202,0.0685689,86308.0,86307.0,0.05609384]
[1765875843412,0.0685689,86308.0,86307.0,0.10609384]
[1765875843811,0.0685689,86308.0,86307.0,0.10709384]
[1765875844413,0.0685689,86308.0,86307.0,0.10609384]
[1765875844711,0.0685689,86308.0,86307.0,0.10709384]
[1765875844910,0.02829,86308.0,86307.0,0.10709384]
[1765875845101,0.05698,86311.0,86310.0,0.05592]
[1765875845309,0.02829,86311.0,86310.0,0.10592]
[1765875845509,0.02829,86311.0,86310.0,0.09592]
[1765875846411,0.02829,86311.0,86310.0,0.10592]
[1765875846607,0.00017384,86316.0,86315.0,0.05592]
[1765875846909,0.00017384,86316.0,86315.0,0.09592]
[1765875847213,0.05715384,86316.0,86315.0,0.09592]
[1765875848316,0.00017384,86316.0,86315.0,0.107508]
[1765875848914,0.00017384,86316.0,86315.0,0.468308]
[1765875849414,0.00017384,86316.0,86315.0,0.478308]
[1765875849614,0.00117384,86316.0,86315.0,0.478308]
[1765875856023,0.07492384,86316.0,86315.0,0.41672]
[1765875856212,0.07492384,86316.0,86315.0,0.38969]
[1765875856521,0.07492384,86316.0,86315.0,0.02889]
[1765875857022,0.07492384,86316.0,86315.0,0.05592]
[1765875859618,0.05815384,86316.0,86315.0,0.05592]
[1765875859824,0.00117384,86316.0,86315.0,0.05592]
[1765875860231,0.00117384,86316.0,86315.0,0.09592]
[1765875860420,0.02946384,86316.0,86315.0,0.09592]
[1765875861218,0.02946384,86316.0,86315.0,0.05592]
[1765875861426,0.05815384,86316.0,86315.0,0.10592]
[1765875861814,0.02946384,86316.0,86315.0,0.10592]
[1765875862021,0.02946384,86316.0,86315.0,0.09592]
[1765875862221,0.02946384,86316.0,86315.0,0.10592]
[1765875862426,0.05815384,86316.0,86315.0,0.10592]
[1765875862728,0.05815384,86316.0,86315.0,0.05592]
[1765875862926,0.05815384,86316.0,86315.0,0.09592]
[1765875863129,0.05815384,86316.0,86315.0,0.10592]
[1765875863520,0.05815384,86316.0,86315.0,0.05592]
[1765875866325,0.05815384,86316.0,86315.0,0.067508]
[1765875868224,0.05815384,86316.0,86315.0,0.05592]
[1765875868427,0.05815384,86316.0,86315.0,0.14955841]
[1765875870234,0.05815384,86316.0,86315.0,0.16114641]
[1765875873235,0.05815384,86316.0,86315.0,0.20114641]
[1765875873536,0.05815384,86316.0,86315.0,0.16114641]
[1765875873937,0.05815384,86316.0,86315.0,0.20114641]
[1765875874435,0.05815384,86316.0,86315.0,0.56194641]
[1765875874635,0.05815384,86316.0,86315.0,0.57194641]
[1765875875639,0.00117384,86316.0,86315.0,0.57194641]
[1765875876137,0.03045384,86316.0,86315.0,0.57194641]
[1765875876839,0.00117384,86316.0,86315.0,0.57194641]
[1765875877336,0.05816384,86316.0,86315.0,0.52194641]
[1765875882036,0.00117384,86316.0,86315.0,0.52194641]
[1765875882241,0.00117384,86316.0,86315.0,0.56194641]
[1765875882633,0.05816384,86316.0,86315.0,0.52194641]
[1765875882834,0.03045384,86316.0,86315.0,0.57194641]
[1765875883037,0.00117384,86316.0,86315.0,0.57194641]
[1765875885235,0.00117384,86316.0,86315.0,0.21114641]
[1765875885538,0.00117384,86316.0,86315.0,0.57194641]
[1765875888036,0.03045384,86316.0,86315.0,0.57194641]
[1765875889649,0.03045384,86316.0,86315.0,0.21114641]
[1765875889848,0.03045384,86316.0,86315.0,0.57194641]
[1765875890349,0.00117384,86316.0,86315.0,0.57194641]
[1765875891747,0.00117384,86316.0,86315.0,0.16114641]
[1765875892051,0.00117384,86316.0,86315.0,0.57194641]
[1765875893450,0.03045384,86316.0,86315.0,0.57194641]
[1765875894043,0.03045384,86316.0,86315.0,0.52194641]
[1765875894445,0.05816384,86316.0,86315.0,0.52194641]
[1765875895355,0.05816384,86316.0,86315.0,0.16114641]
[1765875895558,0.05816384,86316.0,86315.0,0.52194641]
[1765875896856,0.05816384,86316.0,86315.0,0.57194641]
[1765875897047,0.03045384,86316.0,86315.0,0.57194641]
[1765875897455,0.00117384,86316.0,86315.0,0.57194641]
[1765875898453,0.0282143,86343.0,86335.0,0.0688653]
[1765875898454,0.0408653,86336.0,86335.0,0.0688653]
[1765875898653,0.09924131,86336.0,86335.0,0.0688653]
[1765875898846,0.0015576,86338.0,86337.0,0.07481]
[1765875899051,0.0698425,86338.0,86337.0,0.07481]
[1765875899649,0.02899,86335.0,86334.0,0.04509]
[1765875899955,0.0682857,86332.0,86331.0,0.07481]
[1765875900356,0.0567,86332.0,86331.0,0.07481]
[1765875900857,0.0567,86332.0,86331.0,0.08748052]
[1765875902261,0.0597,86332.0,86331.0,0.08748052]
[1765875902555,0.0597,86332.0,86331.0,0.01267052]
[1765875902751,0.0597,86332.0,86329.0,0.00017374]
[1765875902752,0.05714,86330.0,86329.0,0.00017374]
[1765875903149,0.05714,86330.0,86329.0,0.05564374]
[1765875903743,0.05714,86330.0,86329.0,0.06845068]
[1765875907251,0.05814,86330.0,86329.0,0.06945068]
[1765875907952,0.05714,86330.0,86329.0,0.06945068]
[1765875910853,0.05714,86330.0,86329.0,0.07045068]
[1765875911262,0.05714,86330.0,86329.0,0.06945068]
[1765875911457,0.05714,86330.0,86329.0,0.07045068]
[1765875911849,0.05714,86330.0,86329.0,0.01498068]
[1765875912050,0.41794,86330.0,86329.0,0.00117374]
[1765875912264,0.41794,86330.0,86329.0,0.00217374]
[1765875912555,0.41794,86330.0,86329.0,0.04196292]
[1765875912768,0.41794,86330.0,86329.0,0.00217374]
[1765875913160,0.41794,86330.0,86329.0,0.01462381]
[1765875913363,0.41794,86330.0,86329.0,0.00117374]
[1765875913758,0.44801165,86330.0,86329.0,0.00117374]
[1765875913962,0.0687272,86321.0,86320.0,0.07195]
[1765875914465,0.0687272,86321.0,86320.0,0.08449814]
[1765875914662,0.0687272,86321.0,86320.0,0.01254814]
[1765875914869,0.0687292,86306.0,86305.0,0.38787]
[1765875915055,0.0687292,86306.0,86305.0,0.05547]
[1765875915656,0.0687292,86306.0,86305.0,0.01281469]
[1765875915870,0.0687298,86301.0,86300.0,0.04355]
[1765875916065,0.0687298,86301.0,86300.0,0.07195]
[1765875916255,0.0687298,86301.0,86300.0,0.08454089]
[1765875919668,0.0115898,86301.0,86300.0,0.13454089]
[1765875919857,0.0115898,86301.0,86300.0,0.13554089]
[1765875920057,0.0115898,86301.0,86300.0,0.08554089]
[1765875920473,0.0115898,86301.0,86300.0,0.13454089]
[1765875920663,0.0115898,86301.0,86300.0,0.13554089]
[1765875921173,0.0115898,86301.0,86300.0,0.08554089]
[1765875921474,0.0115898,86301.0,86300.0,0.13654089]
[1765875921666,0.0115898,86301.0,86300.0,0.12654089]
[1765875921973,0.0115898,86301.0,86300.0,0.08654089]
[1765875922174,0.0115898,86301.0,86300.0,0.13654089]
[1765875922377,0.0687282,86313.0,86312.0,0.05547]
[1765875923166,0.0687282,86313.0,86312.0,0.11195]
[1765875923374,0.0687282,86313.0,86312.0,0.07195]
[1765875923777,0.0405782,86313.0,86312.0,0.07195]
[1765875924075,0.0687282,86313.0,86312.0,0.07195]
[1765875925176,0.0687282,86313.0,86312.0,0.07295]
[1765875925377,0.0687282,86313.0,86312.0,0.12295]
[1765875926074,0.05714,86313.0,86312.0,0.12295]
[1765875926381,0.02899,86313.0,86312.0,0.12295]
[1765875926572,0.3608,86326.0,86313.0,0.0670582]
[1765875926768,0.0115871,86322.0,86313.0,0.4670582]
[1765875926965,0.3608,86326.0,86313.0,0.8278582]
[1765875927870,0.3608,86334.0,86313.0,0.8288582]
[1765875928078,0.05714,86334.0,86333.0,0.05547]
[1765875928272,0.0115852,86336.0,86335.0,0.07195]
[1765875928273,0.0405752,86336.0,86335.0,0.07195]
[1765875928471,0.0687252,86336.0,86335.0,0.07195]
[1765875930379,0.05714,86336.0,86335.0,0.0845353]
[1765875930570,0.05714,86336.0,86335.0,0.1345353]
[1765875930971,0.05714,86336.0,86335.0,0.1355353]
[1765875933076,0.05714,86336.0,86335.0,0.1345353]
[1765875933278,0.05714,86336.0,86335.0,0.1355353]
[1765875934083,0.05714,86336.0,86335.0,0.1345353]
[1765875934384,0.0115851,86337.0,86336.0,0.0572]
[1765875934584,0.0115851,86337.0,86336.0,0.468]
[1765875934785,0.0402651,86337.0,86336.0,0.468]
[1765875935379,0.0688151,86337.0,86336.0,0.468]
[1765875935575,0.0688151,86337.0,86336.0,0.0582]
[1765875935787,0.0688151,86337.0,86336.0,0.03036]
[1765875936190,0.0688151,86337.0,86336.0,0.0582]
[1765875936985,0.0688151,86337.0,86336.0,0.0592]
[1765875937575,0.0688151,86337.0,86336.0,0.0582]
[1765875937975,0.0688151,86337.0,86336.0,0.0572]
[1765875942684,0.0115851,86337.0,86336.0,0.0572]
[1765875942900,0.0688151,86337.0,86336.0,0.0572]
[1765875951605,0.0688151,86337.0,86336.0,0.0582]
[1765875953904,0.0688151,86337.0,86336.0,0.0572]
[1765875965320,0.09869869,86337.0,86336.0,0.0572]
[1765875965723,0.09969869,86337.0,86336.0,0.0572]
[1765875965912,0.0698151,86337.0,86336.0,0.0572]
[1765875966314,0.09969934,86337.0,86336.0,0.0572]
[1765875966823,0.0698151,86337.0,86336.0,0.0572]
[1765875967119,0.0125851,86337.0,86336.0,0.4295852]
[1765875967423,0.01175784,86344.0,86343.0,0.07222]
[1765875967617,0.05723,86358.0,86357.0,0.0547]
[1765875967824,0.08710899,86358.0,86357.0,0.0547]
[1765875968321,0.08710899,86358.0,86357.0,0.0400216]
[1765875968909,0.09110899,86358.0,86357.0,0.0276]
[1765875969118,0.05723,86356.0,86355.0,0.01752]
[1765875969315,0.44790899,86356.0,86355.0,0.04512]
[1765875969822,0.44790899,86356.0,86355.0,0.08440957]
[1765875970210,0.41803,86356.0,86355.0,0.08440957]
[1765875970724,0.42103,86356.0,86355.0,0.08440957]
[1765875971122,0.3638,86356.0,86355.0,0.08440957]
[1765875971425,0.003,86356.0,86355.0,0.08440957]
[1765875971620,0.06023,86356.0,86355.0,0.08440957]
[1765875977433,0.06023,86356.0,86355.0,0.44520957]
[1765875978415,0.03199,86356.0,86355.0,0.44520957]
[1765875978619,0.003,86356.0,86355.0,0.44520957]
[1765875979232,0.03199,86356.0,86355.0,0.44520957]
[1765875979621,0.06023,86356.0,86355.0,0.44520957]
[1765875980321,0.003,86356.0,86355.0,0.49520957]
[1765875980521,0.003,86356.0,86355.0,0.44520957]
[1765875981429,0.003,86356.0,86355.0,0.49520957]
[1765875981631,0.003,86356.0,86355.0,0.44520957]
[1765875983437,0.003,86356.0,86355.0,0.49520957]
[1765875984230,0.003,86356.0,86355.0,0.48520957]
[1765875984429,0.0145825,86356.0,86355.0,0.48520957]
[1765875984631,0.0145825,86356.0,86355.0,0.44520957]
[1765875984832,0.0435725,86356.0,86355.0,0.44520957]
[1765875985134,0.0145825,86356.0,86355.0,0.44520957]
[1765875987239,0.003,86356.0,86355.0,0.48520957]
[1765875987636,0.003,86356.0,86355.0,0.87520957]
[1765875988233,0.0115814,86364.0,86363.0,0.0662815]
[1765875988439,0.0115805,86371.0,86365.0,0.0662813]
[1765875988634,0.05954542,86378.0,86377.0,0.0547]
[1765875989033,0.07112492,86378.0,86377.0,0.0547]
[1765875990733,0.07512492,86378.0,86377.0,0.0547]
[1765875991447,0.07912492,86378.0,86377.0,0.0547]
[1765875991837,0.07512492,86378.0,86377.0,0.0547]
[1765875992037,0.07812492,86378.0,86377.0,0.0547]
[1765875992737,0.06554542,86378.0,86377.0,0.0547]
[1765875993947,0.03730542,86378.0,86377.0,0.1947]
[1765875994245,0.00831542,86378.0,86377.0,0.0547]
[1765875994444,0.01989492,86378.0,86377.0,0.0547]
[1765875995946,0.00831542,86378.0,86377.0,0.0547]
[1765875996837,0.00831542,86378.0,86377.0,0.4347]
[1765875997041,0.05798,86391.0,86390.0,0.05841]
[1765875997246,0.18863504,86400.0,86396.0,0.07557]
[1765875997443,0.0115767,86399.0,86396.0,0.01716]
[1765875998144,0.011577,86397.0,86396.0,0.01716]
[1765875998333,0.011577,86397.0,86368.0,0.01716]
[1765875998334,0.0115786,86385.0,86368.0,0.01716]
[1765875998537,0.0115786,86385.0,86382.0,3e-08]
[1765875998947,0.0115788,86383.0,86382.0,3e-08]
[1765875999151,0.04128409,86383.0,86382.0,3e-08]
[1765875999651,0.0115788,86383.0,86382.0,3e-08]
[1765876000150,0.0125788,86383.0,86382.0,3e-08]
[1765876000445,0.04228741,86383.0,86382.0,3e-08]
[1765876000645,0.04228741,86383.0,86382.0,0.05841003]
[1765876002441,0.04128741,86383.0,86382.0,0.05841003]
[1765876002650,0.04228741,86383.0,86382.0,0.05841003]
[1765876002944,0.0125788,86383.0,86382.0,3e-08]
[1765876006252,0.04229878,86383.0,86382.0,3e-08]
[1765876009858,0.0712717,86362.0,86361.0,0.41921]
[1765876010056,0.0115817,86362.0,86361.0,0.46921]
[1765876010455,0.0115817,86362.0,86361.0,0.41921]
[1765876010657,0.0115817,86362.0,86361.0,0.46921]
[1765876010864,0.0115817,86362.0,86361.0,0.41921]
[1765876011059,0.0115817,86362.0,86361.0,0.45921]
[1765876011261,0.0115817,86362.0,86361.0,0.46121]
[1765876011656,0.0115817,86362.0,86361.0,0.46321]
[1765876012058,0.0115817,86362.0,86361.0,0.42321]
[1765876012259,0.0115817,86362.0,86361.0,0.42121]
[1765876012457,0.0115817,86362.0,86361.0,0.42321]
[1765876015560,0.0115817,86362.0,86361.0,0.42121]
[1765876015760,0.0115817,86362.0,86361.0,0.42321]
[1765876016262,0.0413317,86362.0,86361.0,0.42321]
[1765876017263,0.0712717,86362.0,86361.0,0.42121]
[1765876017467,0.0712717,86362.0,86361.0,0.42321]
[1765876017967,0.0712717,86362.0,86361.0,0.42121]
[1765876018167,0.0712717,86362.0,86361.0,0.42221]
[1765876018571,0.0712717,86362.0,86361.0,0.42121]
[1765876018754,0.0712717,86362.0,86361.0,0.42221]
[1765876019269,0.0712717,86362.0,86361.0,0.42021]
[1765876020959,0.0413317,86362.0,86361.0,0.42021]
[1765876021454,0.0712717,86362.0,86361.0,0.42021]
[1765876021659,0.0712717,86362.0,86361.0,0.05941]
[1765876023369,0.0722717,86362.0,86361.0,0.05941]
[1765876023566,0.0722717,86362.0,86356.0,0.01716]
[1765876023567,0.0686127,86354.0,86353.0,0.05729363]
[1765876023766,0.4294127,86354.0,86353.0,0.05729363]
[1765876024869,0.4294127,86354.0,86353.0,0.05829363]
[1765876025363,0.4294127,86354.0,86353.0,0.05729363]
[1765876030170,0.4294127,86354.0,86353.0,0.00017363]
[1765876030881,0.4294127,86354.0,86353.0,0.02744363]
[1765876031071,0.4294127,86354.0,86353.0,0.05554363]
[1765876032081,0.4294127,86354.0,86353.0,0.00017363]
[1765876032379,0.4294127,86354.0,86353.0,0.02744363]
[1765876032772,0.4304127,86354.0,86353.0,0.02744363]
[1765876034384,0.4294127,86354.0,86353.0,0.05554363]
[1765876038286,0.0686127,86354.0,86353.0,0.05554363]
[1765876038487,0.4294127,86354.0,86353.0,0.05554363]
[1765876040685,0.4294127,86354.0,86353.0,0.05654363]
[1765876041088,0.4294127,86354.0,86353.0,0.05554363]
[1765876041282,0.4294127,86354.0,86353.0,0.05654363]
[1765876043392,0.4294127,86354.0,86353.0,0.05554363]
[1765876043593,0.4294127,86354.0,86353.0,0.05654363]
[1765876044292,0.4294127,86354.0,86353.0,0.41734363]
[1765876044293,0.0686127,86354.0,86353.0,0.41734363]
[1765876044488,0.0115827,86354.0,86353.0,0.41734363]
[1765876044688,0.0677127,86354.0,86353.0,0.41734363]
[1765876045586,0.0677127,86354.0,86353.0,0.41634363]
[1765876045786,0.0677127,86354.0,86353.0,0.41734363]
[1765876046095,0.0677127,86354.0,86353.0,0.41834363]
[1765876046390,0.0677127,86354.0,86353.0,0.41934363]
[1765876046994,0.0677127,86354.0,86353.0,0.41734363]
[1765876047294,0.0677127,86354.0,86353.0,0.41934363]
[1765876048395,0.0404327,86354.0,86353.0,0.41934363]
[1765876048595,0.0115827,86354.0,86353.0,0.41934363]
[1765876049096,0.0404327,86354.0,86353.0,0.41934363]
[1765876049295,0.0404327,86354.0,86353.0,0.41734363]
[1765876049499,0.0404327,86354.0,86353.0,0.41934363]
[1765876049897,0.0404327,86354.0,86353.0,0.41734363]
[1765876050099,0.0404327,86354.0,86353.0,0.41934363]
[1765876050399,0.0404327,86354.0,86353.0,0.41834363]
[1765876050699,0.0404327,86354.0,86353.0,0.41934363]
[1765876050999,0.0115827,86354.0,86353.0,0.41934363]
[1765876051198,0.0677127,86354.0,86353.0,0.41934363]
[1765876051998,0.0404327,86354.0,86353.0,0.41934363]
[1765876052899,0.0677127,86354.0,86353.0,0.41834363]
[1765876055290,0.0404327,86354.0,86353.0,0.41834363]
[1765876055692,0.0404327,86354.0,86353.0,0.05654363]
[1765876055898,0.0404327,86354.0,86353.0,0.05754363]
[1765876056800,0.0404327,86354.0,86353.0,0.05654363]
[1765876056998,0.0115815,86364.0,86363.0,0.05868]
[1765876059800,0.0115815,86364.0,86363.0,0.0702615]
[1765876059993,0.0115815,86364.0,86363.0,0.0722615]
[1765876060199,0.0115815,86364.0,86363.0,0.0742615]
[1765876070812,0.0115815,86364.0,86363.0,0.4350615]
[1765876071511,0.0680515,86364.0,86363.0,0.42348]
[1765876072810,0.0680515,86364.0,86363.0,0.42148]
[1765876073299,0.0680515,86364.0,86363.0,0.42248]
[1765876073908,0.0850115,86364.0,86363.0,0.003]
[1765876075314,0.0850115,86364.0,86356.0,0.01778]
[1765876075315,0.0680523,86357.0,86356.0,0.07646]
[1765876076502,0.0680523,86357.0,86356.0,0.07846]
[1765876077113,0.0680523,86357.0,86356.0,0.07946]
[1765876078506,0.0680523,86357.0,86356.0,0.06168]
[1765876078710,0.05647,86354.0,86338.0,0.00231649]
[1765876078912,0.05647,86354.0,86338.0,0.06099649]
[1765876078913,0.0680547,86339.0,86338.0,0.06099649]
[1765876079110,0.0680547,86339.0,86338.0,0.00231649]
[1765876079701,0.0680552,86336.0,86328.0,0.01778]
[1765876080416,0.0680552,86336.0,86327.0,0.00017374]
[1765876080616,0.0680562,86328.0,86327.0,0.00017374]
[1765876080915,0.0680562,86328.0,86302.0,0.3608]
[1765876080916,0.0680592,86306.0,86305.0,0.07646]
[1765876081417,0.0680592,86306.0,86305.0,0.0291]
[1765876081622,0.06818654,86306.0,86305.0,0.0291]
[1765876081810,0.00012734,86306.0,86305.0,0.05868]
[1765876082212,0.00017374,86314.0,86313.0,0.0702682]
[1765876082413,0.00017374,86314.0,86313.0,0.4810682]
[1765876083018,0.00017374,86314.0,86313.0,0.4310682]
[1765876084017,0.00017374,86314.0,86313.0,0.4330682]
[1765876084511,0.00017374,86314.0,86313.0,0.4350682]
[1765876084819,0.00017374,86314.0,86313.0,0.4850682]
[1765876085414,0.0115864,86327.0,86326.0,0.05814]
[1765876085616,0.3301164,86335.0,86334.0,0.07507]
[1765876086016,0.3417017,86335.0,86334.0,0.07507]
[1765876086221,0.0693161,86329.0,86328.0,0.05814]
[1765876086721,0.0693169,86323.0,86322.0,0.43587]